fUST/lending_fUST_20250906
["ID","MTS","AMOUNT","RATE_DAILY","PERIOD"]
[383743898,1757106662624,-947.40581569,0.0001649,2]
[383743899,1757106662633,-1000.0,0.0001649,2]
[383743900,1757106662643,-1000.0,0.0001649,2]
[383743901,1757106662652,-480.0,0.00016712,2]
[383743902,1757106662661,-238.86915225,0.00016712,2]
[383743903,1757106662672,-480.0,0.00016712,2]
[383743904,1757106662685,-480.0,0.00016712,2]
[383743905,1757106662695,-483.2,0.00016712,2]
[383743906,1757106662706,-480.0,0.00016712,2]
[383743907,1757106662716,-408.05099212,0.00016712,2]
[383743908,1757106662726,-816.54,0.00016712,2]
[383743909,1757106662736,-564.33,0.00016712,2]
[383743910,1757106662748,-480.0,0.00016712,2]
[383743911,1757106662759,-1450.63,0.00016712,2]
[383743912,1757106662768,-480.0,0.00016712,2]
[383743913,1757106662780,-665.71,0.00016712,2]
[383743914,1757106662790,-480.0,0.00016712,2]
[383743915,1757106662801,-480.0,0.00016712,2]
[383743916,1757106662811,-480.0,0.00016712,2]
[383743917,1757106662821,-713.72,0.00016712,2]
[383743918,1757106662830,-480.0,0.00016712,2]
[383743919,1757106662840,-480.0,0.00016712,2]
[383743920,1757106662849,-636.56,0.00016712,2]
[383743921,1757106662859,-480.0,0.00016712,2]
[383743922,1757106662869,-480.0,0.00016712,2]
[383743923,1757106662879,-480.0,0.00016712,2]
[383743924,1757106662890,-1033.98,0.00016712,2]
[383743925,1757106662899,-1237.66,0.00016712,2]
[383743926,1757106662909,-460.0,0.00016728,2]
[383743927,1757106662919,-864.0,0.00016782,2]
[383743928,1757106662929,-861.090156,0.00016895,2]
[383743929,1757106662939,-1193.2528517,0.00016943,2]
[383743930,1757106662948,-480.0,0.00016986,2]
[383743931,1757106662960,-250.46130591,0.00016986,2]
[383743932,1757106662970,-480.0,0.00016986,2]
[383743933,1757106662980,-483.2,0.00016986,2]
[383743934,1757106662990,-202.31,0.00016986,2]
[383743935,1757106663000,-816.54,0.00016986,2]
[383743936,1757106663010,-564.33,0.00016986,2]
[383743937,1757106663020,-480.0,0.00016986,2]
[383743938,1757106663030,-1450.63,0.00016986,2]
[383743939,1757106663040,-480.0,0.00016986,2]
[383743940,1757106663049,-665.71,0.00016986,2]
[383743941,1757106663059,-480.0,0.00016986,2]
[383743942,1757106663068,-480.0,0.00016986,2]
[383743943,1757106663079,-480.0,0.00016986,2]
[383743944,1757106663088,-713.72,0.00016986,2]
[383743945,1757106663184,-480.0,0.00016986,2]
[383743946,1757106663195,-480.0,0.00016986,2]
[383743947,1757106663205,-636.56,0.00016986,2]
[383743948,1757106663214,-480.0,0.00016986,2]
[383743949,1757106663225,-480.0,0.00016986,2]
[383743950,1757106663235,-480.0,0.00016986,2]
[383743951,1757106663246,-1033.98,0.00016986,2]
[383743952,1757106663256,-1237.66,0.00016986,2]
[383743953,1757106663266,-1000.0,0.00017038,2]
[383743954,1757106663276,-160.0,0.00017189,7]
[383743955,1757106663285,-10569.94136612,0.00017189,7]
[383743956,1757106663295,-417.15472785,0.00017189,7]
[383743957,1757106663304,-530.48792916,0.00017189,7]
[383743958,1757106663314,-160.0,0.00017189,7]
[383743959,1757106663323,-203.18701864,0.00017189,7]
[383743960,1757106663333,-12500.0,0.0001719,7]
[383743961,1757106663342,-151.0,0.0001719,2]
[383743962,1757106663352,-151.0,0.0001719,2]
[383743963,1757106663362,-480.0,0.0001726,2]
[383743964,1757106663371,-480.0,0.0001726,2]
[383743965,1757106663381,-483.2,0.0001726,2]
[383743966,1757106663391,-12500.0,0.0001726,7]
[383743967,1757106663400,-151.0,0.0001726,2]
[383743968,1757106663410,-151.0,0.0001726,2]
[383743969,1757106663420,-151.0,0.0001726,2]
[383743970,1757106663431,-816.54,0.0001726,2]
[383743971,1757106663441,-163.244017,0.0001726,2]
[383743972,1757106663451,-163.244017,0.0001726,2]
[383743973,1757106663462,-163.244017,0.0001726,2]
[383743974,1757106663473,-163.244017,0.0001726,2]
[383743975,1757106663483,-151.0,0.0001726,2]
[383743976,1757106663493,-151.0,0.0001726,2]
[383743977,1757106663503,-564.33,0.0001726,2]
[383743978,1757106663514,-480.0,0.0001726,2]
[383743979,1757106663524,-151.0,0.0001726,2]
[383743980,1757106663534,-1450.63,0.0001726,2]
[383743981,1757106663543,-202.105856,0.0001726,2]
[383743982,1757106663554,-480.0,0.0001726,2]
[383743983,1757106663564,-665.71,0.0001726,2]
[383743984,1757106663574,-480.0,0.0001726,2]
[383743985,1757106663584,-480.0,0.0001726,2]
[383743986,1757106663594,-480.0,0.0001726,2]
[383743987,1757106663604,-713.72,0.0001726,2]
[383743988,1757106663614,-411.1737398,0.0001726,2]
[383743989,1757106663625,-284.74672423,0.0001726,2]
[383743990,1757106663635,-636.56,0.0001726,2]
[383743991,1757106663644,-480.0,0.0001726,2]
[383743992,1757106663654,-480.0,0.0001726,2]
[383743993,1757106663663,-480.0,0.0001726,2]
[383743994,1757106663673,-151.0,0.0001726,2]
[383743995,1757106663683,-1033.98,0.0001726,2]
[383743996,1757106663692,-1237.66,0.0001726,2]
[383743997,1757106663702,-373.809155,0.0001726,2]
[383743998,1757106663711,-373.809155,0.0001726,2]
[383743999,1757106663721,-373.809155,0.0001726,2]
[383744000,1757106663731,-373.809155,0.0001726,2]
[383744001,1757106663741,-560.0,0.00017276,2]
[383744002,1757106663751,-47236.27359657,0.00017444,2]
[383744003,1757106663762,-480.0,0.00017534,2]
[383744004,1757106663772,-431.5,0.00017534,2]
[383744005,1757106663781,-483.2,0.00017534,2]
[383744006,1757106663791,-816.54,0.00017534,2]
[383744007,1757106663800,-564.33,0.00017534,2]
[383744008,1757106663811,-480.0,0.00017534,2]
[383744009,1757106663820,-1450.63,0.00017534,2]
[383744010,1757106663830,-480.0,0.00017534,2]
[383744011,1757106663839,-665.71,0.00017534,2]
[383744012,1757106663849,-562.85,0.00017534,2]
[383744013,1757106663859,-480.0,0.00017534,2]
[383744014,1757106663868,-480.0,0.00017534,2]
[383744015,1757106663877,-713.72,0.00017534,2]
[383744016,1757106663887,-636.56,0.00017534,2]
[383744017,1757106663898,-480.0,0.00017534,2]
[383744018,1757106663908,-480.0,0.00017534,2]
[383744019,1757106663917,-480.0,0.00017534,2]
[383744020,1757106663927,-1033.98,0.00017534,2]
[383744021,1757106663937,-1237.66,0.00017534,2]
[383744022,1757106663946,-2333.53071065,0.00017599,2]
[383744023,1757106663956,-583.96664431,0.00017599,2]
[383744024,1757106663966,-151.0,0.00017749,2]
[383744025,1757106663976,-151.0,0.00017749,2]
[383744026,1757106663985,-153.266762,0.00017749,2]
[383744027,1757106663995,-234.05406515,0.00017808,2]
[383744028,1757106664005,-151.0,0.00017808,2]
[383744029,1757106664015,-483.2,0.00017808,2]
[383744030,1757106664025,-816.54,0.00017808,2]
[383744031,1757106664034,-564.33,0.00017808,2]
[383744032,1757106664045,-480.0,0.00017808,2]
[383744033,1757106664054,-1450.63,0.00017808,2]
[383744034,1757106664065,-480.0,0.00017808,2]
[383744035,1757106664076,-665.71,0.00017808,2]
[383744036,1757106664085,-480.0,0.00017808,2]
[383744037,1757106664095,-274.7,0.00017808,2]
[383744038,1757106664104,-713.72,0.00017808,2]
[383744039,1757106664114,-636.56,0.00017808,2]
[383744040,1757106664124,-441.57152627,0.00017808,2]
[383744041,1757106664133,-480.0,0.00017808,2]
[383744042,1757106664142,-480.0,0.00017808,2]
[383744043,1757106664152,-1033.98,0.00017808,2]
[383744044,1757106664161,-1237.66,0.00017808,2]
[383744045,1757106664171,-660.0,0.00017824,2]
[383744046,1757106664180,-1785.08617199,0.00017988,2]
[383744047,1757106664190,-353.744153,0.00017999,2]
[383744048,1757106664203,-353.744153,0.00017999,2]
[383744049,1757106664212,-353.744153,0.00017999,2]
[383744050,1757106664222,-353.744153,0.00017999,2]
[383744051,1757106664231,-151.0,0.00017999,2]
[383744052,1757106664241,-151.0,0.00017999,2]
[383744053,1757106664250,-151.0,0.00018082,2]
[383744054,1757106664259,-155.952107,0.00018082,2]
[383744055,1757106664268,-151.0,0.00018082,2]
[383744056,1757106664278,-155.952107,0.00018082,2]
[383744057,1757106664287,-155.952107,0.00018082,2]
[383744058,1757106664297,-155.952107,0.00018082,2]
[383744059,1757106664306,-170.978436,0.00018082,2]
[383744060,1757106664316,-170.978436,0.00018082,2]
[383744061,1757106664326,-170.978436,0.00018082,2]
[383744062,1757106664335,-170.978436,0.00018082,2]
[383744063,1757106664345,-483.2,0.00018082,2]
[383744064,1757106664355,-816.54,0.00018082,2]
[383744065,1757106664364,-564.33,0.00018082,2]
[383744066,1757106664374,-480.0,0.00018082,2]
[383744067,1757106664383,-1450.63,0.00018082,2]
[383744068,1757106664392,-480.0,0.00018082,2]
[383744069,1757106664402,-665.71,0.00018082,2]
[383744070,1757106664411,-480.0,0.00018082,2]
[383744071,1757106664421,-713.72,0.00018082,2]
[383744072,1757106664430,-636.56,0.00018082,2]
[383744073,1757106664440,-457.64,0.00018082,2]
[383744074,1757106664449,-480.0,0.00018082,2]
[383744075,1757106664459,-1033.98,0.00018082,2]
[383744076,1757106664469,-1237.66,0.00018082,2]
[383744077,1757106664478,-168.0,0.00018181,2]
[383744078,1757106664488,-168.0,0.00018267,2]
[383744079,1757106664498,-483.2,0.00018356,2]
[383744080,1757106664508,-816.54,0.00018356,2]
[383744081,1757106664518,-564.33,0.00018356,2]
[383744082,1757106664529,-480.0,0.00018356,2]
[383744083,1757106664538,-1450.63,0.00018356,2]
[383744084,1757106664548,-480.0,0.00018356,2]
[383744085,1757106664558,-665.71,0.00018356,2]
[383744086,1757106664567,-480.0,0.00018356,2]
[383744087,1757106664577,-713.72,0.00018356,2]
[383744088,1757106664587,-636.56,0.00018356,2]
[383744089,1757106664597,-480.0,0.00018356,2]
[383744090,1757106664607,-1033.98,0.00018356,2]
[383744091,1757106664616,-1237.66,0.00018356,2]
[383744092,1757106664626,-760.0,0.00018372,2]
[383744093,1757106664636,-4375.9927461,0.00018405,2]
[383744094,1757106664646,-1000.0,0.0001846,2]
[383744095,1757106664657,-151.0,0.000185,2]
[383744096,1757106664667,-758.58794009,0.00018525,2]
[383744097,1757106664677,-3031.31740862,0.00018525,2]
[383744098,1757106664687,-168.0,0.00018573,2]
[383744099,1757106664698,-483.2,0.0001863,2]
[383744100,1757106664708,-816.54,0.0001863,2]
[383744101,1757106664718,-564.33,0.0001863,2]
[383744102,1757106664728,-480.0,0.0001863,2]
[383744103,1757106664739,-1450.63,0.0001863,2]
[383744104,1757106664749,-480.0,0.0001863,2]
[383744105,1757106664758,-665.71,0.0001863,2]
[383744106,1757106664768,-480.0,0.0001863,2]
[383744107,1757106664778,-713.72,0.0001863,2]
[383744108,1757106664787,-636.56,0.0001863,2]
[383744109,1757106664798,-480.0,0.0001863,2]
[383744110,1757106664809,-1033.98,0.0001863,2]
[383744111,1757106664819,-1237.66,0.0001863,2]
[383744112,1757106664920,-168.0,0.00018864,2]
[383744113,1757106664931,-483.2,0.00018904,2]
[383744114,1757106664941,-816.54,0.00018904,2]
[383744115,1757106664951,-564.33,0.00018904,2]
[383744116,1757106664962,-480.0,0.00018904,2]
[383744117,1757106664971,-1450.63,0.00018904,2]
[383744118,1757106664981,-480.0,0.00018904,2]
[383744119,1757106664990,-665.71,0.00018904,2]
[383744120,1757106665000,-480.0,0.00018904,2]
[383744121,1757106665012,-713.72,0.00018904,2]
[383744122,1757106665022,-636.56,0.00018904,2]
[383744123,1757106665032,-480.0,0.00018904,2]
[383744124,1757106665042,-1033.98,0.00018904,2]
[383744125,1757106665052,-1237.66,0.00018904,2]
[383744126,1757106665062,-860.0,0.0001892,2]
[383744127,1757106665072,-168.0,0.0001895,2]
[383744128,1757106665082,-4030.0,0.00019,2]
[383744129,1757106665091,-409.0,0.00019015,2]
[383744130,1757106665101,-150.0,0.00019044,2]
[383744131,1757106665110,-150.0,0.00019044,2]
[383744132,1757106665119,-975.0,0.00019044,2]
[383744133,1757106665129,-2153.0,0.00019044,2]
[383744134,1757106665139,-633.0,0.00019044,2]
[383744135,1757106665148,-168.0,0.00019056,2]
[383744136,1757106665158,-168.0,0.00019075,2]
[383744137,1757106665167,-168.0,0.00019085,2]
[383744138,1757106665176,-476.70063077,0.00019098,2]
[383744139,1757106665293,-499.71533143,0.00019098,2]
[383744140,1757106665304,-151.0,0.000191,2]
[383744141,1757106665313,-168.0,0.00019108,2]
[383744142,1757106665323,-168.0,0.00019115,2]
[383744143,1757106665333,-3.28466857,0.00019178,2]
[383744144,1757106665374,-151.0,0.00014246,2]
[383744145,1757106665384,-228.2939947,0.00019178,2]
[383744146,1757106665397,-251.62133673,0.00019178,2]
[383744147,1757106665407,-176.66291654,0.00019178,2]
[383744148,1757106665541,-247.663815,0.00014246,2]
[383744149,1757106665551,-151.0,0.00014246,2]
[383744150,1757106665562,-151.0,0.00015068,2]
[383744151,1757106665572,-247.663815,0.00015068,2]
[383744152,1757106665582,-73.1448765,0.00015068,2]
[383744153,1757106665595,-77.8551235,0.00015068,2]
[383744154,1757106665605,-151.0,0.0001726,2]
[383744155,1757106665616,-247.663815,0.0001726,2]
[383744156,1757106665626,-639.87708346,0.00019178,2]
[383744157,1757106665636,-564.33,0.00019178,2]
[383744158,1757106665647,-480.0,0.00019178,2]
[383744159,1757106665656,-1450.63,0.00019178,2]
[383744160,1757106665666,-480.0,0.00019178,2]
[383744161,1757106665677,-665.71,0.00019178,2]
[383744162,1757106665687,-480.0,0.00019178,2]
[383744163,1757106665697,-713.72,0.00019178,2]
[383744164,1757106665708,-636.56,0.00019178,2]
[383744165,1757106665720,-480.0,0.00019178,2]
[383744166,1757106665731,-1033.98,0.00019178,2]
[383744167,1757106665741,-1237.66,0.00019178,2]
[383744168,1757106665751,-5000.0,0.00019178,2]
[383744169,1757106665760,-5000.0,0.00019178,2]
[383744170,1757106665771,-5000.0,0.00019178,2]
[383744171,1757106665780,-15.01527958,0.00019178,2]
[383744172,1757106665792,-3586.14584053,0.00019178,2]
[383744173,1757106666031,-480.0,0.00013698,2]
[383744174,1757106666040,-247.663815,0.00014246,2]
[383744175,1757106666050,-151.0,0.00014246,2]
[383744176,1757106666059,-247.663815,0.00014246,2]
[383744177,1757106666069,-247.663815,0.00014246,2]
[383744178,1757106666079,-247.663815,0.00015068,2]
[383744179,1757106666088,-198.04146,0.00015068,2]
[383744180,1757106666098,-247.663815,0.00015068,2]
[383744181,1757106666107,-247.663815,0.00015068,2]
[383744182,1757106666116,-151.0,0.0001726,2]
[383744183,1757106666126,-247.663815,0.0001726,2]
[383744184,1757106666135,-247.663815,0.0001726,2]
[383744185,1757106666145,-1398.83887989,0.00019178,2]
[383744186,1757106666154,-168.0,0.00019231,2]
[383744187,1757106666163,-168.0,0.00019245,2]
[383744188,1757106666174,-168.0,0.00019287,2]
[383744189,1757106666183,-184.58779725,0.00019452,2]
[383744190,1757106666221,-247.663815,0.0001726,2]
[383744191,1757106666232,-298.61220275,0.00019452,2]
[383744192,1757106666242,-816.54,0.00019452,2]
[383744193,1757106666251,-564.33,0.00019452,2]
[383744194,1757106666260,-480.0,0.00019452,2]
[383744195,1757106666270,-1450.63,0.00019452,2]
[383744196,1757106666279,-480.0,0.00019452,2]
[383744197,1757106666289,-9.90167172,0.00019452,2]
[383744198,1757106669220,203.92133502,0.00013462,2]
[383744200,1757106690217,203.9665338,0.00013473,2]
[383744201,1757106723152,18546.24624738,0.00013498,2]
[383744205,1757106986515,-440.2594913,0.00013397,2]
[383744206,1757106989404,-165.97846305,0.00013397,2]
[383744208,1757107143296,-208.02547189,0.0001336,2]
[383744209,1757107147521,-271.97452811,0.0001336,2]
[383744210,1757107270112,-234.8523286,0.00013398,2]
[383744211,1757107271789,-299.49771206,0.00013398,2]
[383744212,1757107273548,-44.89444516,0.00013398,2]
[383744220,1757107548122,-1200.0,0.00013489,2]
[383744221,1757107548646,-300.0,0.00013489,2]
[383744222,1757107548668,-300.0,0.00013489,2]
[383744223,1757107548688,-300.0,0.00013489,2]
[383744224,1757107548709,-300.0,0.00013489,2]
[383744225,1757107548730,-300.0,0.00013489,2]
[383744226,1757107548751,-1200.0,0.00013489,2]
[383744227,1757107548772,-500.0,0.0001349,2]
[383744228,1757107548796,-500.0,0.0001349,2]
[383744229,1757107548814,-500.0,0.0001349,2]
[383744230,1757107548835,-500.0,0.0001349,2]
[383744231,1757107548855,-500.0,0.0001349,2]
[383744232,1757107548877,-220.64211084,0.00013497,2]
[383744233,1757107548899,-195.5596826,0.00013497,2]
[383744234,1757107548919,-189.13400789,0.00013497,2]
[383744235,1757107548940,-245.00552563,0.00013497,2]
[383744236,1757107548964,-500.0,0.00013497,2]
[383744237,1757107548984,-320.35487496,0.00013497,2]
[383744238,1757107549007,-500.0,0.00013497,2]
[383744239,1757107549030,-500.0,0.00013497,2]
[383744240,1757107549052,-85.79152898,0.00013497,2]
[383744241,1757107552912,-251.21408888,0.00013398,2]
[383744242,1757107555130,-232.8375059,0.00013398,2]
[383744243,1757107558032,-22.78733033,0.00013398,2]
[383744244,1757107611052,152.46282841,0.00013093,2]
[383744255,1757107681826,201379.02328682,0.0002894,60]
[383744257,1757107716291,490081.84104558,0.0002894,60]
[383744258,1757107720517,150.99999908,0.0002894,120]
[383744301,1757107832119,-402.0,0.00013496,2]
[383744306,1757107832631,-300.0,0.00013496,2]
[383744307,1757107832641,-1200.0,0.00013496,2]
[383744308,1757107832651,-4957.37338601,0.00013497,2]
[383744309,1757107832670,-26533.47567837,0.00013497,2]
[383744310,1757107832680,-414.20847102,0.00013497,2]
[383744311,1757107832690,-240.08037117,0.00013497,2]
[383744312,1757107832700,-500.0,0.00013497,2]
[383744313,1757107832709,-500.0,0.00013497,2]
[383744314,1757107832719,-500.0,0.00013497,2]
[383744315,1757107832729,-500.0,0.00013497,2]
[383744316,1757107832740,-500.0,0.00013497,2]
[383744317,1757107832751,-500.0,0.00013497,2]
[383744318,1757107832761,-500.0,0.00013497,2]
[383744319,1757107832771,-500.0,0.00013497,2]
[383744320,1757107832780,-450.0,0.00013497,2]
[383744321,1757107832789,-500.0,0.00013497,2]
[383744322,1757107832799,-500.0,0.00013497,2]
[383744323,1757107832808,-198.39347917,0.00013497,2]
[383744324,1757107832817,-564.22820425,0.00013497,2]
[383744325,1757107832827,-500.0,0.00013497,2]
[383744326,1757107832836,-237.01274822,0.00013497,2]
[383744327,1757107832847,-500.0,0.00013497,2]
[383744328,1757107832858,-500.0,0.00013497,2]
[383744329,1757107832868,-260.03714337,0.00013497,2]
[383744330,1757107832877,-205.04973063,0.00013497,2]
[383744331,1757107832887,-202.20607097,0.00013497,2]
[383744332,1757107832897,-500.0,0.00013497,2]
[383744333,1757107832908,-550.0,0.00013497,2]
[383744334,1757107832918,-500.0,0.00013497,2]
[383744335,1757107832927,-532.58715548,0.00013497,2]
[383744336,1757107832936,-5119.24836725,0.00013498,2]
[383744375,1757107838138,-443.48405948,0.00013397,2]
[383744377,1757107838149,-346334.50538537,0.00013498,2]
[383744379,1757107838158,-319.61061698,0.00013595,2]
[383744381,1757107838168,-319.61061698,0.00013671,2]
[383744383,1757107838177,-19356.47061884,0.00013695,2]
[383744385,1757107838186,-480.0,0.00013698,2]
[383744387,1757107838196,-480.0,0.00013698,2]
[383744389,1757107838205,-480.0,0.00013698,2]
[383744391,1757107838215,-480.0,0.00013698,2]
[383744393,1757107838224,-480.0,0.00013698,2]
[383744395,1757107838233,-480.0,0.00013698,2]
[383744397,1757107838243,-480.0,0.00013698,2]
[383744399,1757107838253,-488.17346423,0.00013698,2]
[383744401,1757107838263,-480.0,0.00013698,2]
[383744403,1757107838272,-480.0,0.00013698,2]
[383744405,1757107838282,-480.0,0.00013698,2]
[383744407,1757107838291,-480.0,0.00013698,2]
[383744409,1757107838300,-480.0,0.00013698,2]
[383744411,1757107838309,-480.0,0.00013698,2]
[383744413,1757107838319,-480.0,0.00013698,2]
[383744415,1757107838328,-480.0,0.00013698,2]
[383744417,1757107838338,-480.0,0.00013698,2]
[383744419,1757107838347,-480.0,0.00013698,2]
[383744421,1757107838356,-480.0,0.00013698,2]
[383744423,1757107838366,-480.0,0.00013698,2]
[383744425,1757107838375,-480.0,0.00013698,2]
[383744427,1757107838384,-480.0,0.00013698,2]
[383744429,1757107838393,-480.0,0.00013698,2]
[383744431,1757107838403,-480.0,0.00013698,2]
[383744433,1757107838412,-480.0,0.00013698,2]
[383744435,1757107838421,-480.0,0.00013698,2]
[383744437,1757107838430,-480.0,0.00013698,2]
[383744439,1757107838440,-480.0,0.00013698,2]
[383744441,1757107838449,-480.0,0.00013698,2]
[383744443,1757107838459,-480.0,0.00013698,2]
[383744445,1757107838468,-480.0,0.00013698,2]
[383744447,1757107838477,-480.0,0.00013698,2]
[383744449,1757107838487,-374.82,0.00013698,2]
[383744451,1757107838497,-480.0,0.00013698,2]
[383744453,1757107838506,-480.0,0.00013698,2]
[383744455,1757107838515,-480.0,0.00013698,2]
[383744457,1757107838525,-480.0,0.00013698,2]
[383744459,1757107838535,-480.0,0.00013698,2]
[383744461,1757107838544,-456.10223806,0.00013698,2]
[383744462,1757107838552,-480.0,0.00013698,2]
[383744465,1757107838562,-480.0,0.00013698,2]
[383744467,1757107838571,-480.0,0.00013698,2]
[383744468,1757107838580,-480.0,0.00013698,2]
[383744470,1757107838589,-480.0,0.00013698,2]
[383744473,1757107838599,-549.13473647,0.00013698,2]
[383744475,1757107838608,-480.0,0.00013698,2]
[383744477,1757107838619,-480.0,0.00013698,2]
[383744479,1757107838628,-480.0,0.00013698,2]
[383744481,1757107838637,-480.0,0.00013698,2]
[383744483,1757107838646,-480.0,0.00013698,2]
[383744484,1757107838655,-480.0,0.00013698,2]
[383744486,1757107838664,-480.0,0.00013698,2]
[383744488,1757107838674,-480.0,0.00013698,2]
[383744490,1757107838683,-480.0,0.00013698,2]
[383744492,1757107838693,-480.0,0.00013698,2]
[383744494,1757107838703,-480.0,0.00013698,2]
[383744496,1757107838713,-480.0,0.00013698,2]
[383744498,1757107838722,-480.0,0.00013698,2]
[383744500,1757107838732,-248.40032969,0.00013698,2]
[383744502,1757107838741,-480.0,0.00013698,2]
[383744504,1757107838751,-480.0,0.00013698,2]
[383744507,1757107838761,-480.0,0.00013698,2]
[383744509,1757107838771,-480.0,0.00013698,2]
[383744511,1757107838780,-480.0,0.00013698,2]
[383744513,1757107838789,-480.0,0.00013698,2]
[383744515,1757107838798,-480.0,0.00013698,2]
[383744517,1757107838807,-480.0,0.00013698,2]
[383744519,1757107838817,-480.0,0.00013698,2]
[383744520,1757107838827,-480.0,0.00013698,2]
[383744522,1757107838836,-480.0,0.00013698,2]
[383744525,1757107838846,-480.0,0.00013698,2]
[383744526,1757107838855,-480.0,0.00013698,2]
[383744528,1757107838865,-480.0,0.00013698,2]
[383744530,1757107838875,-480.0,0.00013698,2]
[383744533,1757107838886,-480.0,0.00013698,2]
[383744535,1757107838895,-480.0,0.00013698,2]
[383744536,1757107838904,-480.0,0.00013698,2]
[383744538,1757107838916,-480.0,0.00013698,2]
[383744540,1757107838925,-480.0,0.00013698,2]
[383744543,1757107838935,-480.0,0.00013698,2]
[383744545,1757107838944,-480.0,0.00013698,2]
[383744547,1757107838953,-480.0,0.00013698,2]
[383744549,1757107838962,-480.0,0.00013698,2]
[383744551,1757107838971,-480.0,0.00013698,2]
[383744553,1757107838980,-515.67,0.00013698,2]
[383744555,1757107838989,-480.0,0.00013698,2]
[383744557,1757107839000,-480.0,0.00013698,2]
[383744559,1757107839009,-480.0,0.00013698,2]
[383744561,1757107839018,-297.75105167,0.00013698,2]
[383744563,1757107839027,-549.97,0.00013698,2]
[383744565,1757107839037,-480.0,0.00013698,2]
[383744566,1757107839047,-480.0,0.00013698,2]
[383744567,1757107839056,-480.0,0.00013698,2]
[383744568,1757107839065,-480.0,0.00013698,2]
[383744569,1757107839074,-480.0,0.00013698,2]
[383744570,1757107839083,-480.0,0.00013698,2]
[383744571,1757107839092,-480.0,0.00013698,2]
[383744572,1757107839101,-480.0,0.00013698,2]
[383744573,1757107839110,-261.39326309,0.00013698,2]
[383744574,1757107839119,-480.0,0.00013698,2]
[383744575,1757107839129,-552.53590651,0.00013698,2]
[383744576,1757107839138,-480.0,0.00013698,2]
[383744577,1757107839148,-480.0,0.00013698,2]
[383744578,1757107839157,-480.0,0.00013698,2]
[383744579,1757107839167,-480.0,0.00013698,2]
[383744580,1757107839176,-480.0,0.00013698,2]
[383744581,1757107839186,-480.0,0.00013698,2]
[383744582,1757107839195,-483.26205905,0.00013698,2]
[383744583,1757107839204,-480.0,0.00013698,2]
[383744584,1757107839214,-480.0,0.00013698,2]
[383744585,1757107839223,-482.45266879,0.00013698,2]
[383744586,1757107839233,-480.0,0.00013698,2]
[383744587,1757107839243,-480.0,0.00013698,2]
[383744588,1757107839255,-480.0,0.00013698,2]
[383744589,1757107839264,-480.0,0.00013698,2]
[383744590,1757107839274,-480.0,0.00013698,2]
[383744591,1757107839283,-480.0,0.00013698,2]
[383744597,1757107839420,-480.0,0.00013698,2]
[383744600,1757107839432,-480.0,0.00013698,2]
[383744601,1757107839442,-480.0,0.00013698,2]
[383744603,1757107839452,-480.0,0.00013698,2]
[383744606,1757107839461,-480.0,0.00013698,2]
[383744607,1757107839471,-480.0,0.00013698,2]
[383744610,1757107839481,-480.0,0.00013698,2]
[383744611,1757107839491,-156.35,0.00013698,2]